fUSD/lending_fUSD_20240220
["ID","MTS","AMOUNT","RATE_DAILY","PERIOD"]
[314527705,1708405843245,-1351.97,0.00035842,2]
[314527708,1708405843255,-1088.16,0.00035842,2]
[314527709,1708405843264,-1475.67,0.00035842,2]
[314527711,1708405843273,-1038.28,0.00035842,2]
[314527713,1708405843282,-1154.43,0.00035842,2]
[314527716,1708405843292,-1030.29,0.00035842,2]
[314527718,1708405843301,-2781.04,0.00035842,2]
[314527720,1708405843311,-150.0,0.00035842,2]
[314527722,1708405843320,-524.0,0.00035842,2]
[314527724,1708405843330,-677.33,0.00035842,2]
[314527726,1708405843339,-4170.19,0.00035842,2]
[314527728,1708405843348,-500.0,0.00035842,2]
[314527730,1708405843357,-1974.77,0.00035842,2]
[314527731,1708405843367,-3026.21,0.00035842,2]
[314527732,1708405843376,-686.23,0.00035842,2]
[314527733,1708405843386,-764.58,0.00035842,2]
[314527734,1708405843395,-765.68,0.00035842,2]
[314527736,1708405843404,-1513.9,0.00035842,2]
[314527738,1708405843414,-1299.32,0.00035842,2]
[314527740,1708405843423,-940.65,0.00035842,2]
[314527742,1708405843432,-1988.81,0.00035842,2]
[314527744,1708405843442,-405.28597928,0.00035842,4]
[314527746,1708405843451,-921.1,0.00035843,2]
[314527748,1708405843460,-1730.62,0.00035843,2]
[314527750,1708405843469,-1958.76,0.00035843,2]
[314527752,1708405843478,-1249.32,0.00035843,2]
[314527755,1708405843488,-902.22,0.00035843,2]
[314527757,1708405843498,-664.99,0.00035843,2]
[314527759,1708405843507,-669.7,0.00035843,2]
[314527760,1708405843516,-3868.49,0.00035843,2]
[314527762,1708405843526,-1885.97,0.00035843,2]
[314527765,1708405843535,-658.2,0.00035843,2]
[314527767,1708405843545,-1639.72,0.00035843,2]
[314527769,1708405843554,-1006.78,0.00035843,2]
[314527771,1708405843563,-673.99,0.00035843,2]
[314527773,1708405843572,-500.0,0.00035843,2]
[314527775,1708405843582,-505.6,0.00035843,2]
[314527777,1708405843591,-1619.9,0.00035843,2]
[314527779,1708405843601,-927.69,0.00035843,2]
[314527780,1708405843610,-2967.23,0.00035843,2]
[314527783,1708405843620,-1060.89,0.00035843,2]
[314527785,1708405843629,-1666.19,0.00035843,2]
[314527787,1708405843639,-720.79,0.00035843,2]
[314527789,1708405843647,-1070.65,0.00035843,2]
[314527791,1708405843656,-500.84,0.00035843,2]
[314527792,1708405843665,-999.67,0.00035843,2]
[314527794,1708405843675,-850.24,0.00035843,2]
[314527797,1708405843684,-1626.55,0.00035843,2]
[314527799,1708405843693,-873.93,0.00035843,2]
[314527801,1708405843702,-500.0,0.00035843,2]
[314527802,1708405843711,-1425.91,0.00035843,2]
[314527803,1708405843720,-245000.0,0.00035844,2]
[314527804,1708405843729,-1000.0,0.00035844,2]
[314527805,1708405843737,-150.0,0.00035849,2]
[314527806,1708405843746,-5000.0,0.00035852,3]
[314527807,1708405843756,-150.0,0.00035886,2]
[314527808,1708405843765,-150.0,0.00035895,2]
[314527809,1708405843773,-157.0212031,0.00035898,2]
[314527810,1708405843782,-200.88428896,0.000359,8]
[314527811,1708405843792,-150.0,0.00035906,2]
[314527812,1708405843801,-162.24708733,0.00035916,2]
[314527813,1708405843810,-150.0,0.00035922,2]
[314527814,1708405843819,-150.0,0.00035927,2]
[314527815,1708405843827,-411.81452052,0.00035933,2]
[314527816,1708405843836,-300.0,0.00035948,5]
[314527817,1708405843845,-510.83,0.00035951,2]
[314527818,1708405843854,-500.0,0.00035951,2]
[314527819,1708405843863,-500.0,0.00035951,2]
[314527820,1708405843872,-791.81,0.00035951,2]
[314527821,1708405843881,-627.84567742,0.00035951,2]
[314527822,1708405843890,-500.0,0.00035951,2]
[314527823,1708405843900,-500.0,0.00035951,2]
[314527824,1708405843909,-500.0,0.00035951,2]
[314527825,1708405843918,-500.0,0.00035951,2]
[314527826,1708405843928,-500.0,0.00035951,2]
[314527827,1708405843937,-500.0,0.00035951,2]
[314527828,1708405843947,-513.26,0.00035951,2]
[314527829,1708405843956,-500.0,0.00035951,2]
[314527830,1708405843969,-500.0,0.00035951,2]
[314527831,1708405843978,-500.0,0.00035951,2]
[314527832,1708405843987,-500.0,0.00035951,2]
[314527833,1708405843997,-500.0,0.00035951,2]
[314527834,1708405844006,-500.0,0.00035951,2]
[314527835,1708405844023,-500.0,0.00035951,2]
[314527836,1708405844036,-500.0,0.00035951,2]
[314527837,1708405844046,-500.0,0.00035951,2]
[314527838,1708405844055,-500.0,0.00035951,2]
[314527839,1708405844065,-500.0,0.00035951,2]
[314527861,1708405844270,-500.0,0.00035951,2]
[314527864,1708405844297,-500.0,0.00035951,2]
[314527866,1708405844306,-500.0,0.00035951,2]
[314527868,1708405844315,-644.76,0.00035951,2]
[314527870,1708405844324,-461.53593601,0.00035951,2]
[314527871,1708405844333,-500.0,0.00035951,2]
[314527874,1708405844342,-500.0,0.00035951,2]
[314527875,1708405844351,-500.0,0.00035951,2]
[314527877,1708405844360,-500.0,0.00035951,2]
[314527879,1708405844370,-500.0,0.00035951,2]
[314527881,1708405844379,-500.0,0.00035951,2]
[314527883,1708405844388,-548.34094149,0.00035951,2]
[314527885,1708405844398,-500.0,0.00035951,2]
[314527887,1708405844408,-565.81,0.00035951,2]
[314527889,1708405844417,-500.0,0.00035951,2]
[314527892,1708405844428,-500.0,0.00035951,2]
[314527894,1708405844437,-500.0,0.00035951,2]
[314527896,1708405844447,-500.0,0.00035951,2]
[314527898,1708405844456,-505.96,0.00035951,2]
[314527899,1708405844465,-500.0,0.00035951,2]
[314527901,1708405844475,-500.0,0.00035951,2]
[314527903,1708405844484,-500.0,0.00035951,2]
[314527906,1708405844494,-500.0,0.00035951,2]
[314527908,1708405844504,-500.0,0.00035951,2]
[314527909,1708405844513,-500.0,0.00035951,2]
[314527911,1708405844522,-500.0,0.00035951,2]
[314527913,1708405844532,-500.0,0.00035951,2]
[314527915,1708405844541,-551.79,0.00035951,2]
[314527917,1708405844550,-581.45,0.00035951,2]
[314527919,1708405844559,-500.0,0.00035951,2]
[314527921,1708405844569,-500.0,0.00035951,2]
[314527923,1708405844578,-523.73,0.00035951,2]
[314527925,1708405844588,-500.0,0.00035951,2]
[314527927,1708405844597,-515.57,0.00035951,2]
[314527929,1708405844606,-720.38,0.00035951,2]
[314527931,1708405844615,-500.0,0.00035951,2]
[314527933,1708405844624,-500.0,0.00035951,2]
[314527935,1708405844633,-500.0,0.00035951,2]
[314527937,1708405844643,-500.0,0.00035951,2]
[314527939,1708405844655,-500.0,0.00035951,2]
[314527941,1708405844664,-500.0,0.00035951,2]
[314527943,1708405844673,-500.0,0.00035951,2]
[314527945,1708405844682,-500.0,0.00035951,2]
[314527947,1708405844691,-500.0,0.00035951,2]
[314527949,1708405844700,-500.0,0.00035951,2]
[314527951,1708405844709,-500.0,0.00035951,2]
[314527953,1708405844718,-547.53,0.00035951,2]
[314527955,1708405844728,-500.0,0.00035951,2]
[314527957,1708405844737,-500.0,0.00035951,2]
[314527959,1708405844746,-1030.57578133,0.00035951,7]
[314527961,1708405844755,-500.0,0.00035951,2]
[314527963,1708405844764,-500.0,0.00035951,2]
[314527965,1708405844773,-500.0,0.00035951,2]
[314527967,1708405844782,-500.0,0.00035951,2]
[314527969,1708405844791,-500.0,0.00035951,2]
[314527971,1708405844800,-500.0,0.00035951,2]
[314527973,1708405844809,-500.0,0.00035951,2]
[314527975,1708405844818,-452.65601913,0.00035951,2]
[314527977,1708405844828,-500.0,0.00035951,2]
[314527979,1708405844836,-500.0,0.00035951,2]
[314527981,1708405844846,-500.0,0.00035951,2]
[314527983,1708405844855,-538.99,0.00035951,2]
[314527985,1708405844864,-385.09113724,0.00035951,7]
[314527987,1708405844872,-500.0,0.00035951,2]
[314527989,1708405844882,-500.0,0.00035951,2]
[314527991,1708405844891,-500.0,0.00035951,2]
[314527993,1708405844900,-500.0,0.00035951,2]
[314527995,1708405844908,-815.58,0.00035951,2]
[314527997,1708405844917,-500.0,0.00035951,2]
[314527999,1708405844926,-500.0,0.00035951,2]
[314528001,1708405844935,-500.0,0.00035951,2]
[314528002,1708405844944,-500.0,0.00035951,2]
[314528004,1708405844954,-500.0,0.00035951,2]
[314528006,1708405844967,-500.0,0.00035951,2]
[314528008,1708405844976,-606.1,0.00035951,2]
[314528010,1708405844985,-500.0,0.00035951,2]
[314528012,1708405844994,-500.0,0.00035951,2]
[314528014,1708405845003,-825.71,0.00035951,2]
[314528016,1708405845013,-500.0,0.00035951,2]
[314528018,1708405845022,-500.0,0.00035951,2]
[314528020,1708405845032,-500.0,0.00035951,2]
[314528022,1708405845042,-500.0,0.00035951,2]
[314528023,1708405845052,-500.0,0.00035952,2]
[314528024,1708405845061,-500.0,0.00035952,2]
[314528025,1708405845070,-500.0,0.00035952,2]
[314528026,1708405845079,-500.0,0.00035952,2]
[314528027,1708405845088,-500.0,0.00035952,2]
[314528028,1708405845098,-500.0,0.00035952,2]
[314528029,1708405845107,-500.0,0.00035952,2]
[314528030,1708405845116,-500.0,0.00035952,2]
[314528031,1708405845125,-500.0,0.00035952,2]
[314528032,1708405845134,-500.0,0.00035952,2]
[314528033,1708405845144,-500.0,0.00035952,2]
[314528034,1708405845153,-500.0,0.00035952,2]
[314528035,1708405845163,-500.0,0.00035952,2]
[314528036,1708405845172,-500.0,0.00035952,2]
[314528037,1708405845181,-500.0,0.00035952,2]
[314528038,1708405845190,-500.0,0.00035952,2]
[314528039,1708405845199,-500.0,0.00035952,2]
[314528040,1708405845208,-500.0,0.00035952,2]
[314528041,1708405845217,-500.0,0.00035952,2]
[314528042,1708405845227,-500.0,0.00035952,2]
[314528043,1708405845236,-385.34429368,0.00035952,2]
[314528044,1708405845245,-500.0,0.00035952,2]
[314528045,1708405845254,-500.0,0.00035952,2]
[314528046,1708405845263,-500.0,0.00035952,2]
[314528047,1708405845274,-572.98122381,0.00035952,2]
[314528048,1708405845283,-500.0,0.00035952,2]
[314528049,1708405845293,-500.0,0.00035952,2]
[314528050,1708405845302,-500.0,0.00035952,2]
[314528051,1708405845311,-559.77627015,0.00035952,2]
[314528052,1708405845321,-500.0,0.00035952,2]
[314528053,1708405845330,-500.0,0.00035952,2]
[314528054,1708405845339,-285.0,0.00035952,2]
[314528055,1708405845349,-500.0,0.00035952,2]
[314528056,1708405845358,-573.34856782,0.00035952,2]
[314528057,1708405845367,-500.0,0.00035952,2]
[314528058,1708405845377,-500.0,0.00035952,2]
[314528059,1708405845386,-500.0,0.00035952,2]
[314528060,1708405845396,-500.0,0.00035952,2]
[314528061,1708405845405,-500.0,0.00035952,2]
[314528062,1708405845414,-499.12073505,0.00035952,2]
[314528063,1708405845424,-500.0,0.00035952,2]
[314528064,1708405845433,-500.0,0.00035952,2]
[314528065,1708405845442,-500.0,0.00035952,2]
[314528066,1708405845452,-500.0,0.00035952,2]
[314528067,1708405845461,-500.0,0.00035952,2]
[314528068,1708405845470,-500.0,0.00035952,2]
[314528069,1708405845479,-500.0,0.00035952,2]
[314528070,1708405845489,-500.0,0.00035952,2]
[314528071,1708405845498,-500.0,0.00035952,2]
[314528072,1708405845508,-500.0,0.00035952,2]
[314528073,1708405845517,-500.0,0.00035952,2]
[314528074,1708405845526,-500.0,0.00035952,2]
[314528075,1708405845536,-500.0,0.00035952,2]
[314528076,1708405845546,-500.0,0.00035952,2]
[314528077,1708405845555,-500.0,0.00035952,2]
[314528078,1708405845564,-500.0,0.00035952,2]
[314528079,1708405845573,-500.0,0.00035952,2]
[314528080,1708405845583,-352.50825218,0.00035952,2]
[314528081,1708405845593,-500.0,0.00035952,2]
[314528082,1708405845602,-500.0,0.00035952,2]
[314528083,1708405845612,-500.0,0.00035952,2]
[314528084,1708405845622,-500.0,0.00035952,2]
[314528085,1708405845632,-500.0,0.00035952,2]
[314528086,1708405845641,-528.58337037,0.00035952,2]
[314528087,1708405845650,-596.54271514,0.00035952,2]
[314528088,1708405845659,-500.0,0.00035952,2]
[314528089,1708405845668,-524.48049931,0.00035952,2]
[314528090,1708405845678,-500.0,0.00035952,2]
[314528091,1708405845690,-500.0,0.00035952,2]
[314528092,1708405845699,-500.0,0.00035952,2]
[314528093,1708405845709,-500.0,0.00035952,2]
[314528094,1708405845718,-500.0,0.00035952,2]
[314528095,1708405845727,-500.0,0.00035952,2]
[314528096,1708405845736,-500.0,0.00035952,2]
[314528097,1708405845745,-504.91787578,0.00035952,2]
[314528098,1708405845754,-500.0,0.00035952,2]
[314528099,1708405845764,-503.30511723,0.00035952,2]
[314528100,1708405845773,-500.0,0.00035952,2]
[314528101,1708405845782,-500.0,0.00035952,2]
[314528102,1708405845791,-500.0,0.00035952,2]
[314528103,1708405845800,-500.0,0.00035952,2]
[314528104,1708405845809,-500.0,0.00035952,2]
[314528105,1708405845818,-500.0,0.00035952,2]
[314528106,1708405845827,-500.0,0.00035952,2]
[314528107,1708405845836,-266.28563994,0.00035952,5]
[314528108,1708405845845,-500.0,0.00035952,2]
[314528109,1708405845853,-500.0,0.00035952,2]
[314528110,1708405845862,-500.0,0.00035952,2]
[314528111,1708405845872,-500.0,0.00035952,2]
[314528112,1708405845881,-425.27183887,0.00035952,2]
[314528113,1708405845890,-500.0,0.00035952,2]
[314528114,1708405845899,-500.0,0.00035952,2]
[314528115,1708405845908,-500.0,0.00035952,2]
[314528116,1708405845917,-500.0,0.00035952,2]
[314528117,1708405845926,-500.0,0.00035952,2]
[314528118,1708405845936,-500.0,0.00035952,2]
[314528119,1708405845945,-810.33,0.00035952,2]
[314528120,1708405845954,-500.0,0.00035952,2]
[314528121,1708405845968,-500.0,0.00035952,2]
[314528122,1708405845977,-500.0,0.00035952,2]
[314528123,1708405845986,-500.0,0.00035952,2]
[314528124,1708405845995,-229.34924251,0.00035952,2]
[314528125,1708405846004,-500.0,0.00035952,2]
[314528126,1708405846014,-884.12,0.00035952,2]
[314528127,1708405846023,-500.0,0.00035952,2]
[314528128,1708405846032,-743.52,0.00035952,2]
[314528129,1708405846043,-500.0,0.00035952,2]
[314528130,1708405846053,-906.89,0.00035952,2]
[314528131,1708405846062,-500.0,0.00035952,2]
[314528132,1708405846071,-500.0,0.00035952,2]
[314528133,1708405846080,-587.64,0.00035952,2]
[314528134,1708405846089,-500.0,0.00035952,2]
[314528135,1708405846098,-500.0,0.00035952,2]
[314528136,1708405846107,-500.0,0.00035952,2]
[314528137,1708405846120,-500.0,0.00035952,2]
[314528138,1708405846130,-500.0,0.00035952,2]
[314528139,1708405846139,-500.0,0.00035952,2]
[314528140,1708405846148,-500.0,0.00035952,2]
[314528141,1708405846158,-500.0,0.00035952,2]
[314528142,1708405846167,-500.0,0.00035952,2]
[314528143,1708405846176,-500.0,0.00035952,2]
[314528144,1708405846185,-500.0,0.00035952,2]
[314528145,1708405846194,-500.0,0.00035952,2]
[314528146,1708405846203,-500.0,0.00035952,2]
[314528147,1708405846212,-500.0,0.00035952,2]
[314528148,1708405846221,-648.5,0.00035952,2]
[314528149,1708405846230,-500.0,0.00035952,2]
[314528150,1708405846239,-500.0,0.00035952,2]
[314528151,1708405846248,-590.95,0.00035952,2]
[314528152,1708405846257,-500.0,0.00035952,2]
[314528153,1708405846266,-157.55965458,0.00035953,2]
[314528154,1708405846275,-276.67052694,0.00035953,2]
[314528155,1708405846284,-500.0,0.00035953,2]
[314528156,1708405846293,-500.0,0.00035953,2]
[314528157,1708405846305,-500.0,0.00035953,2]
[314528158,1708405846314,-500.0,0.00035953,2]
[314528159,1708405846323,-578.77012252,0.00035953,2]
[314528160,1708405846332,-474.54733641,0.00035953,2]
[314528161,1708405846342,-500.0,0.00035953,2]
[314528162,1708405846351,-500.0,0.00035953,2]
[314528163,1708405846360,-500.0,0.00035953,2]
[314528164,1708405846369,-575.39,0.00035953,2]
[314528165,1708405846378,-626.27,0.00035953,2]
[314528166,1708405846388,-500.0,0.00035953,2]
[314528167,1708405846397,-994.41,0.00035953,2]
[314528168,1708405846407,-500.0,0.00035953,2]
[314528169,1708405846416,-1239.4,0.00035953,2]
[314528170,1708405846425,-500.0,0.00035953,2]
[314528171,1708405846434,-500.0,0.00035953,2]
[314528172,1708405846444,-500.0,0.00035953,2]
[314528173,1708405846453,-500.0,0.00035953,2]
[314528174,1708405846463,-655.95,0.00035953,2]
[314528175,1708405846472,-587.57,0.00035953,2]
[314528176,1708405846481,-643.06,0.00035953,2]
[314528177,1708405846490,-894.33,0.00035953,2]
[314528178,1708405846499,-500.0,0.00035953,2]
[314528179,1708405846508,-500.0,0.00035953,2]
[314528180,1708405846518,-500.0,0.00035953,2]
[314528181,1708405846528,-500.0,0.00035953,2]
[314528182,1708405846537,-500.0,0.00035953,2]
[314528183,1708405846546,-593.69,0.00035953,2]
[314528184,1708405846556,-688.4,0.00035953,2]
[314528185,1708405846565,-500.0,0.00035953,2]
[314528186,1708405846575,-500.0,0.00035953,2]
[314528187,1708405846584,-500.0,0.00035953,2]
[314528188,1708405846593,-500.0,0.00035953,2]
[314528189,1708405846602,-500.0,0.00035953,2]
[314528190,1708405846612,-500.0,0.00035953,2]
[314528191,1708405846621,-500.0,0.00035953,2]
[314528192,1708405846630,-500.0,0.00035953,2]
[314528193,1708405846640,-605.41,0.00035953,2]
[314528194,1708405846648,-547.12,0.00035953,2]
[314528195,1708405846658,-500.0,0.00035953,2]
[314528196,1708405846667,-579.04,0.00035953,2]
[314528197,1708405846675,-500.0,0.00035953,2]
[314528198,1708405846685,-500.0,0.00035953,2]
[314528199,1708405846695,-20000.0,0.00035955,2]
[314528200,1708405846704,-211.0,0.00035955,2]
[314528201,1708405846713,-150.0,0.00035972,2]
[314528202,1708405846722,-217.64331962,0.00035994,7]
[314528203,1708405846731,-157.0212031,0.00035998,2]
[314528204,1708405846741,-51747.77989895,0.00036,2]
[314528205,1708405846750,-1000.0,0.00036,5]
[314528206,1708405846759,-1000.0,0.00036,5]
[314528207,1708405846768,-295.03687102,0.00036002,7]
[314528208,1708405846777,-2343.98,0.00036015,2]
[314528209,1708405846947,-1165.67,0.00036015,2]
[314528210,1708405846957,-543.99,0.00036015,2]
[314528211,1708405846971,-649.17,0.00036015,2]
[314528212,1708405846980,-882.84,0.00036015,2]
[314528213,1708405846990,-911.74,0.00036015,2]
[314528214,1708405846999,-2167.09,0.00036015,2]
[314528215,1708405847009,-4210.64,0.00036015,2]
[314528216,1708405847018,-19216.17,0.00036015,2]
[314528217,1708405847028,-948.0,0.00036015,2]
[314528218,1708405847040,-500.0,0.00036015,2]
[314528219,1708405847049,-1093.22,0.00036015,2]
[314528220,1708405847058,-1692.44,0.00036015,2]
[314528221,1708405847068,-500.0,0.00036015,2]
[314528222,1708405847077,-1578.14,0.00036015,2]
[314528223,1708405847086,-1099.35,0.00036015,2]
[314528224,1708405847095,-975.65,0.00036015,2]
[314528225,1708405847105,-708.65,0.00036015,2]
[314528226,1708405847114,-6268.26,0.00036015,2]
[314528227,1708405847123,-500.0,0.00036015,2]
[314528228,1708405847132,-500.0,0.00036015,2]
[314528229,1708405847141,-901.49,0.00036015,2]
[314528230,1708405847150,-651.6,0.00036015,2]
[314528231,1708405847160,-1025.4,0.00036015,2]
[314528232,1708405847169,-500.0,0.00036015,2]
[314528233,1708405847178,-3156.54,0.00036015,2]
[314528234,1708405847187,-857.52,0.00036015,2]
[314528235,1708405847197,-1107.07,0.00036015,2]
[314528236,1708405847208,-799.36,0.00036015,2]
[314528237,1708405847217,-833.39,0.00036015,2]
[314528238,1708405847226,-757.3,0.00036015,2]
[314528239,1708405847236,-3560.7,0.00036015,2]
[314528240,1708405847245,-500.0,0.00036015,2]
[314528241,1708405847254,-1705.39,0.00036015,2]
[314528242,1708405847264,-789.45,0.00036015,2]
[314528243,1708405847273,-3144.99,0.00036015,2]
[314528244,1708405847282,-5007.03,0.00036015,2]
[314528245,1708405847291,-1314.19,0.00036015,2]
[314528246,1708405847300,-985.9,0.00036015,2]
[314528247,1708405847309,-1051.08,0.00036015,2]
[314528248,1708405847318,-1499.97,0.00036015,2]
[314528249,1708405847327,-7345.36,0.00036015,2]
[314528250,1708405847336,-1204.36,0.00036015,2]
[314528251,1708405847346,-500.0,0.00036015,2]
[314528252,1708405847355,-770.93,0.00036015,2]
[314528253,1708405847364,-2816.2,0.00036015,2]
[314528254,1708405847373,-856.91,0.00036015,2]
[314528255,1708405847383,-566.48,0.00036015,2]
[314528256,1708405847392,-529.69,0.00036015,2]
[314528257,1708405847401,-631.33,0.00036015,2]
[314528258,1708405847411,-934.23,0.00036015,2]
[314528259,1708405847420,-500.0,0.00036015,2]
[314528260,1708405847429,-506.06,0.00036015,2]
[314528261,1708405847439,-503.72,0.00036015,2]
[314528262,1708405847448,-763.13,0.00036015,2]
[314528263,1708405847457,-500.0,0.00036015,2]
[314528264,1708405847467,-500.0,0.00036015,2]
[314528265,1708405847476,-802.39,0.00036015,2]
[314528266,1708405847485,-1007.84,0.00036015,2]
[314528267,1708405847495,-800.83,0.00036015,2]
[314528268,1708405847504,-712.66,0.00036015,2]
[314528269,1708405847513,-28558.24345411,0.00036016,2]
[314528270,1708405847523,-584.61515562,0.00036016,2]
[314528271,1708405847532,-508.36324065,0.00036016,2]
[314528272,1708405847541,-500.0,0.00036016,2]
[314528273,1708405847551,-500.0,0.00036016,2]
[314528274,1708405847561,-500.0,0.00036016,2]
[314528275,1708405847570,-500.0,0.00036016,2]
[314528276,1708405847579,-500.0,0.00036016,2]
[314528277,1708405847589,-500.0,0.00036016,2]
[314528278,1708405847598,-500.0,0.00036016,2]
[314528279,1708405847608,-1224.75,0.00036016,2]
[314528280,1708405847617,-500.0,0.00036016,2]
[314528281,1708405847627,-546.6,0.00036016,2]
[314528282,1708405847636,-500.0,0.00036016,2]
[314528283,1708405847645,-500.0,0.00036016,2]
[314528284,1708405847655,-500.0,0.00036016,2]
[314528285,1708405847664,-500.0,0.00036016,2]
[314528286,1708405847674,-500.0,0.00036016,2]
[314528287,1708405847683,-500.0,0.00036016,2]
[314528288,1708405847693,-500.0,0.00036016,2]
[314528289,1708405847702,-500.0,0.00036016,2]
[314528290,1708405847711,-500.0,0.00036016,2]
[314528291,1708405847721,-500.0,0.00036016,2]
[314528292,1708405847731,-500.0,0.00036016,2]
[314528293,1708405847740,-500.0,0.00036016,2]
[314528294,1708405847749,-500.0,0.00036016,2]
[314528295,1708405847759,-500.0,0.00036016,2]
[314528296,1708405847769,-500.0,0.00036016,2]
[314528297,1708405847778,-1502.26,0.00036016,2]
[314528298,1708405847787,-500.0,0.00036016,2]
[314528299,1708405847797,-500.0,0.00036016,2]
[314528300,1708405847806,-855.67,0.00036016,2]
[314528301,1708405847816,-500.0,0.00036016,2]
[314528302,1708405847825,-500.0,0.00036016,2]
[314528303,1708405847834,-500.0,0.00036016,2]
[314528304,1708405847844,-500.0,0.00036016,2]
[314528305,1708405847854,-500.0,0.00036016,2]
[314528306,1708405847863,-500.0,0.00036016,2]
[314528307,1708405847872,-500.0,0.00036016,2]
[314528308,1708405847882,-196.17115459,0.00036016,2]
[314528309,1708405847892,-500.0,0.00036016,2]
[314528310,1708405847902,-500.0,0.00036016,2]
[314528311,1708405847912,-500.0,0.00036016,2]
[314528312,1708405847921,-500.0,0.00036016,2]
[314528313,1708405847931,-500.0,0.00036016,2]
[314528314,1708405847940,-500.0,0.00036016,2]
[314528315,1708405847949,-500.0,0.00036016,2]
[314528316,1708405847959,-500.0,0.00036016,2]
[314528317,1708405847971,-500.0,0.00036016,2]
[314528318,1708405847981,-500.0,0.00036016,2]
[314528319,1708405847991,-500.0,0.00036016,2]
[314528320,1708405848000,-500.0,0.00036016,2]
[314528321,1708405848010,-500.0,0.00036016,2]
[314528322,1708405848020,-500.0,0.00036016,2]
[314528323,1708405848029,-500.0,0.00036016,2]
[314528324,1708405848039,-605.59883329,0.00036016,2]
[314528325,1708405848050,-500.0,0.00036016,2]
[314528326,1708405848060,-500.0,0.00036016,2]
[314528327,1708405848069,-500.0,0.00036016,2]
[314528328,1708405848078,-205.5418699,0.00036016,2]
[314528329,1708405848088,-500.0,0.00036016,2]
[314528330,1708405848097,-585.13898371,0.00036016,2]
[314528331,1708405848106,-500.0,0.00036016,2]
[314528332,1708405848115,-629.26510775,0.00036016,2]
[314528333,1708405848124,-500.0,0.00036016,2]
[314528334,1708405848133,-500.0,0.00036016,2]
[314528335,1708405848143,-500.0,0.00036016,2]
[314528336,1708405848152,-500.0,0.00036016,2]
[314528337,1708405848161,-500.0,0.00036016,2]
[314528338,1708405848170,-500.0,0.00036016,2]
[314528339,1708405848179,-500.0,0.00036016,2]
[314528340,1708405848188,-500.0,0.00036016,2]
[314528341,1708405848197,-500.0,0.00036016,2]
[314528342,1708405848206,-500.0,0.00036016,2]
[314528343,1708405848214,-500.0,0.00036016,2]
[314528344,1708405848223,-500.0,0.00036016,2]
[314528345,1708405848232,-500.0,0.00036016,2]
[314528346,1708405848242,-500.0,0.00036016,2]
[314528347,1708405848251,-500.0,0.00036016,2]
[314528348,1708405848260,-500.0,0.00036016,2]
[314528349,1708405848270,-500.0,0.00036016,2]
[314528350,1708405848279,-500.0,0.00036016,2]
[314528351,1708405848289,-517.91,0.00036016,2]
[314528352,1708405848299,-500.0,0.00036016,2]